bitfinex-derivatives/quotes_ETHF0:USTF0_20250123
["timestamp","ask_amount","ask_price","bid_price","bid_amount"]
[1737607586097,0.62499,3202.4,3202.3,44.0078]
[1737607586402,0.62498,3202.5,3202.3,44.0078]
[1737607588199,0.62497,3202.6,3202.3,44.63281]
[1737607588703,0.00468545,3202.8,3202.3,44.0078]
[1737607588904,0.62498,3202.5,3202.3,44.0078]
[1737607589104,0.00468545,3202.8,3202.3,44.0078]
[1737607589399,0.62960545,3202.8,3202.7,3.2078]
[1737607593193,0.00468545,3202.8,3202.7,3.2078]
[1737607593391,0.00468545,3202.8,3202.7,3.83274]
[1737607593905,0.00468545,3202.8,3202.7,3.2078]
[1737607594104,0.00468545,3202.8,3202.7,3.83274]
[1737607594799,0.00468545,3202.8,3202.7,3.2078]
[1737607595005,0.62960545,3202.8,3202.7,44.0078]
[1737607595300,1.87850545,3202.8,3202.7,44.0078]
[1737607599099,1.25358545,3202.8,3202.7,44.0078]
[1737607599399,1.25358545,3202.8,3202.7,44.63274]
[1737607599805,1.87850545,3202.8,3202.7,44.0078]
[1737607600002,1.25358545,3202.8,3202.7,44.0078]
[1737607600196,1.25358545,3202.8,3202.7,44.63274]
[1737607600608,0.62479,3203.5,3203.2,0.62482]
[1737607600797,0.62477,3203.6,3203.3,8.74021]
[1737607600996,3.2078,3203.7,3203.5,0.62477]
[1737607601403,0.62472,3203.8,3203.6,41.42475]
[1737607601610,0.62474,3203.7,3203.6,40.8]
[1737607601800,0.62472,3203.8,3203.7,2.142]
[1737607602005,6.20341346,3204.6,3203.7,2.142]
[1737607602006,0.6247,3203.9,3203.7,2.142]
[1737607602207,0.62472,3203.8,3203.7,2.142]
[1737607602604,0.62469,3204.0,3203.8,0.62472]
[1737607602800,0.62467,3204.1,3203.8,5.83442]
[1737607603209,0.62467,3204.1,3203.9,0.6247]
[1737607603404,0.62467,3204.1,3203.8,5.2097]
[1737607603612,0.6247,3204.0,3203.8,5.2097]
[1737607604414,6.20341346,3204.6,3203.9,0.62469]
[1737607604415,0.62466,3204.2,3203.9,0.62469]
[1737607605310,2.99561346,3204.6,3203.8,5.2097]
[1737607605513,2.99561346,3204.6,3203.9,3.83249]
[1737607605514,0.62465,3204.2,3203.9,3.83249]
[1737607606011,9.9787,3204.7,3203.9,3.2078]
[1737607606208,9.9787,3204.7,3203.9,3.83249]
[1737607606408,0.62464,3204.2,3204.0,0.62468]
[1737607606603,0.62464,3204.2,3203.9,3.83249]
[1737607607310,0.62464,3204.2,3204.0,0.62468]
[1737607607503,0.62464,3204.2,3203.9,3.83249]
[1737607607707,0.62465,3204.2,3204.0,0.62467]
[1737607607912,16.47711346,3205.0,3203.9,3.2078]
[1737607608117,0.62467,3204.1,3203.9,3.2078]
[1737607608314,0.62467,3204.1,3203.9,3.83249]
[1737607608514,0.62467,3204.1,3203.9,3.2078]
[1737607609116,1.56132,3204.8,3203.9,3.2078]
[1737607609319,0.62462,3204.4,3204.1,0.62466]
[1737607609714,2.47222254,3204.9,3203.9,3.2078]
[1737607609914,0.62467,3204.1,3203.9,3.8325]
[1737607610113,0.62465,3204.2,3203.9,3.8325]
[1737607610304,1.56132,3204.8,3203.9,3.8325]
[1737607610509,0.62465,3204.2,3203.9,3.8325]
[1737607610711,1.56132,3204.8,3203.9,3.8325]
[1737607610917,0.62465,3204.2,3203.9,3.8325]
[1737607611112,0.62465,3204.2,3203.9,3.2078]
[1737607611318,0.62465,3204.2,3204.0,0.62468]
[1737607611515,0.62465,3204.2,3203.9,3.8325]
[1737607611913,2.47222254,3204.9,3203.9,3.2078]
[1737607612122,13.4815,3205.0,3204.3,3.2078]
[1737607612312,0.62456,3204.7,3204.4,0.62459]
[1737607612513,0.62456,3204.7,3204.4,5.87289]
[1737607613318,0.62451,3204.9,3204.4,5.2483]
[1737607613522,8.3994,3205.0,3204.4,5.2483]
[1737607613716,0.62457,3204.6,3204.5,40.8]
[1737607614514,8.3994,3205.0,3203.9,3.2078]
[1737607614713,0.62468,3204.1,3203.9,3.2078]
[1737607614912,0.6247,3204.0,3203.9,3.2078]
[1737607615121,0.62466,3204.2,3203.9,40.8]
[1737607615329,0.62466,3204.2,3203.9,44.6325]
[1737607615614,0.62467,3204.1,3203.9,44.6325]
[1737607615821,0.62467,3204.1,3203.9,44.0078]
[1737607616821,0.62467,3204.1,3203.9,44.6325]
[1737607617330,5.68002254,3204.6,3203.9,44.0078]
[1737607617523,0.62468,3204.1,3203.9,44.0078]
[1737607618430,5.68002254,3204.6,3203.9,44.0078]
[1737607618635,0.62468,3204.0,3203.9,44.0078]
[1737607618928,0.62468,3204.1,3203.9,44.0078]
[1737607619516,0.62468,3204.1,3203.9,44.6325]
[1737607619820,0.62466,3204.2,3203.9,44.0078]
[1737607620018,0.62467,3204.1,3203.9,44.63249]
[1737607620223,0.62467,3204.1,3203.9,44.6325]
[1737607620523,3.2078,3204.6,3203.9,44.6325]
[1737607620726,0.62465,3204.2,3204.0,0.62467]
[1737607620925,2.47222254,3204.1,3203.9,3.2078]
[1737607621126,5.68002254,3204.4,3203.5,8.3295]
[1737607621326,0.62466,3204.2,3203.7,0.62473]
[1737607621523,0.62466,3204.2,3203.8,4.9979]
[1737607621718,5.68002254,3204.4,3203.6,40.8]
[1737607621925,0.62472,3203.8,3203.6,40.8]
[1737607622634,5.68002254,3204.4,3203.6,40.8]
[1737607622823,0.62474,3203.7,3203.6,40.8]
[1737607623431,0.62474,3203.7,3203.5,8.3295]
[1737607623627,0.62476,3203.6,3203.5,3.2078]
[1737607624027,5.1627,3204.0,3203.5,44.0078]
[1737607624230,0.62475,3203.7,3203.5,44.0078]
[1737607624527,0.62471,3203.9,3203.5,44.0078]
[1737607624733,0.62474,3203.7,3203.5,44.0078]
[1737607624934,0.62473,3203.8,3203.5,44.0078]
[1737607626019,0.62474,3203.7,3203.5,44.0078]
[1737607626529,0.62476,3203.6,3203.5,44.0078]
[1737607627928,0.62476,3203.6,3203.5,3.2078]
[1737607628326,0.62476,3203.6,3203.5,44.0078]
[1737607628527,0.62476,3203.6,3203.5,3.2078]
[1737607628719,0.62478,3203.5,3203.4,0.00468545]
[1737607633938,5.2892,3203.9,3203.4,0.00468545]
[1737607634133,0.62478,3203.5,3203.4,0.00468545]
[1737607634329,0.62477,3203.6,3203.4,0.00468545]
[1737607634832,5.2892,3203.9,3203.4,0.00468545]
[1737607634833,0.62478,3203.5,3203.4,0.00468545]
[1737607635437,3.09700254,3203.5,3203.4,0.00468545]
[1737607636037,3.14956532,3203.5,3203.4,5.45e-06]
[1737607636832,3.09700254,3203.5,3203.4,5.45e-06]
[1737607638226,3.14956347,3203.5,3203.4,5.45e-06]
[1737607638424,3.14956322,3203.5,3203.4,5.45e-06]
[1737607638636,3.09700254,3203.5,3203.4,5.45e-06]
[1737607639229,3.14956317,3203.5,3203.4,5.45e-06]
[1737607639433,3.14956324,3203.5,3203.4,5.45e-06]
[1737607639939,8.14956324,3203.5,3203.4,5.45e-06]
[1737607640230,9.23997336,3203.5,3203.4,5.45e-06]
[1737607640436,9.2398033,3203.5,3203.4,5.45e-06]
[1737607640741,8.71015762,3203.5,3203.4,5.45e-06]
[1737607640931,8.14956324,3203.5,3203.4,5.45e-06]
[1737607641831,9.99700578,3203.5,3202.7,40.8]
[1737607642034,0.62511,3201.8,3201.7,3.2078]
[1737607642232,2.47222254,3202.0,3201.6,0.85849834]
[1737607642433,2.47222254,3202.3,3201.6,0.85849834]
[1737607642836,0.62513,3201.7,3201.6,0.85849834]
[1737607643037,0.62513,3201.7,3201.6,41.66318379]
[1737607643241,0.62511,3201.9,3201.6,42.28832379]
[1737607643533,2.47690799,3202.3,3201.6,42.28832379]
[1737607643534,2.47690799,3202.3,3201.6,41.66318379]
[1737607643735,2.47690799,3202.3,3201.7,3.2078]
[1737607643936,0.62970545,3202.3,3202.0,0.62506]
[1737607644136,0.62970545,3202.3,3201.7,3.2078]
[1737607644137,0.00468545,3202.3,3202.1,8.0031]
[1737607644348,3.2078,3202.9,3202.1,8.0031]
[1737607644539,0.62499,3202.5,3202.2,10.88702]
[1737607644736,0.62499,3202.5,3202.2,10.262]
[1737607645041,0.62496,3202.6,3202.4,0.62499]
[1737607645442,0.62496,3202.6,3202.2,10.262]
[1737607645443,0.62494,3202.7,3202.5,0.62497]
[1737607645646,3.2078,3202.9,3202.2,10.262]
[1737607645843,0.62497,3202.5,3202.2,10.262]
[1737607646041,0.62501,3202.3,3202.2,5.0963]
[1737607646739,2.47222254,3202.6,3202.1,8.0031]
[1737607646938,0.62503,3202.2,3202.1,8.0031]
[1737607648250,5.68002254,3202.9,3202.1,8.0031]
[1737607648551,5.68002254,3202.9,3202.2,0.62502]
[1737607648552,0.62498,3202.5,3202.2,0.62502]
[1737607648748,5.68002254,3202.9,3202.1,8.0031]
[1737607648945,0.62501,3202.3,3202.1,8.62814]
[1737607649142,0.62497,3202.6,3202.3,0.625]
[1737607649341,5.68002254,3202.9,3202.1,8.0031]
[1737607649542,0.62502,3202.3,3202.1,8.62815]
[1737607649744,0.62501,3202.4,3202.1,8.0031]
[1737607649945,0.62501,3202.4,3202.3,40.8]
[1737607652351,7.24228254,3202.9,3202.3,40.8]
[1737607652352,3.2078,3202.9,3202.3,40.8]
[1737607652551,11.65702,3203.4,3202.6,3.83275]
[1737607652552,0.62493,3202.8,3202.6,3.83275]
[1737607652946,0.62494,3202.7,3202.6,3.2078]
[1737607654653,0.62499,3202.4,3202.3,40.8]
[1737607654853,0.62501,3202.3,3202.2,3.2078]
[1737607655252,0.62501,3202.3,3202.2,44.0078]
[1737607655645,2.47222254,3202.3,3201.8,3.2078]
[1737607655846,0.62509,3201.9,3201.8,3.2078]
[1737607656045,0.62511,3201.8,3201.7,5.0405]
[1737607656251,0.62511,3201.8,3201.7,45.8405]
[1737607656558,0.62509,3202.0,3201.8,0.6251]
[1737607656858,0.62509,3201.9,3201.8,3.2078]
[1737607657056,1.56251,3202.4,3201.7,45.8405]
[1737607657356,0.62511,3201.8,3201.7,45.8405]
[1737607659248,5.68002254,3202.6,3201.7,45.8405]
[1737607659455,0.62511,3201.8,3201.7,45.8405]
[1737607659656,0.62511,3201.8,3201.7,49.0483]
[1737607659849,0.6251,3201.9,3201.7,49.67342]
[1737607660052,4.9164,3202.9,3201.7,49.0483]
[1737607660259,0.62503,3202.3,3202.2,3.2078]
[1737607662657,0.62511,3201.8,3201.7,45.8405]
[1737607662954,4.77023,3202.6,3201.7,45.8405]
[1737607663162,0.62497,3202.5,3202.0,3.2078]
[1737607663460,0.62503,3202.3,3202.1,0.62505]
[1737607663655,0.62504,3202.2,3202.0,8.61466]
[1737607663860,3.2078,3202.6,3202.0,7.9896]
[1737607664063,0.62505,3202.1,3202.0,7.9896]
[1737607665661,0.62505,3202.1,3202.0,3.2078]
[1737607665860,1.56244,3202.5,3201.7,46.46562]
[1737607665861,0.6251,3201.9,3201.7,46.46562]
[1737607666154,0.62511,3201.8,3201.7,45.8405]
[1737607666759,0.62511,3201.8,3201.7,49.0483]
[1737607667363,0.62511,3201.8,3201.7,45.8405]
[1737607667757,8.4916,3202.4,3201.7,45.8405]
[1737607667758,3.2078,3202.4,3201.7,45.8405]
[1737607668459,0.6251,3201.9,3201.7,46.46562]
[1737607668661,0.62511,3201.8,3201.7,45.8405]
[1737607672757,0.62511,3201.8,3201.7,40.8]
[1737607673764,0.62513,3201.7,3201.6,0.00468545]
[1737607674165,0.62513,3201.7,3201.6,40.80468545]
[1737607679468,0.62513,3201.7,3201.6,5.45e-06]
[1737607679659,8.14981136,3201.7,3201.6,5.45e-06]
[1737607679863,0.62529,3200.9,3200.8,3.2078]
[1737607680069,0.62529,3200.9,3200.8,44.0078]
[1737607681565,2.47222254,3201.1,3200.5,0.00468545]
[1737607681867,3.83315,3200.6,3200.5,0.00468545]
[1737607682064,0.62535,3200.6,3200.5,5.45e-06]
[1737607682268,8.88560233,3200.6,3200.5,5.45e-06]
[1737607682570,3.88560233,3200.6,3200.5,5.45e-06]
[1737607682770,3.83315,3200.6,3200.5,5.45e-06]
[1737607683066,3.88559822,3200.6,3200.5,5.45e-06]
[1737607684665,3.8856001,3200.6,3200.5,5.45e-06]
[1737607685062,2.47222254,3200.8,3200.5,5.45e-06]
[1737607685063,0.00468545,3201.2,3200.5,5.00000545]
[1737607685369,0.00468545,3201.2,3200.9,3.2078]
[1737607685564,0.62533,3200.7,3200.6,5.2358]
[1737607685864,1.56778545,3201.2,3200.5,5.45e-06]
[1737607685865,0.62535,3200.6,3200.5,5.45e-06]
[1737607686071,0.62535,3200.6,3200.5,40.80000545]
[1737607687777,0.00468545,3201.2,3200.5,40.80000545]
[1737607687980,0.62534,3200.7,3200.6,5.16798191]
[1737607688580,0.62533,3200.7,3200.6,5.16798191]
[1737607693280,0.62533,3200.7,3200.6,0.00138191]
[1737607697988,5.67776685,3200.7,3200.6,1.91e-06]
[1737607698291,6.20619365,3200.7,3200.6,1.91e-06]
[1737607698497,6.70413569,3200.7,3200.6,1.91e-06]
[1737607698694,7.26323127,3200.7,3200.6,1.91e-06]
[1737607699099,11.32200779,3200.7,3200.6,1.91e-06]
[1737607699295,1.23686243,3200.7,3200.6,1.91e-06]
[1737607699488,0.67776685,3200.7,3200.6,1.91e-06]
[1737607700695,13.17339706,3200.7,3200.6,1.91e-06]
[1737607700894,13.73250013,3200.7,3200.6,1.91e-06]
[1737607701294,13.73250013,3200.7,3200.5,5.45e-06]
[1737607701295,0.62535,3200.6,3200.5,5.45e-06]
[1737607701487,10.21794709,3200.6,3200.5,5.45e-06]
[1737607701693,19.31302162,3200.6,3200.5,5.45e-06]
[1737607701892,19.87212469,3200.6,3200.5,5.45e-06]
[1737607702091,19.24677469,3200.6,3198.9,3.2078]
[1737607702295,2.47222254,3199.6,3198.9,3.2078]
[1737607702499,0.62565,3199.1,3198.9,3.2078]
[1737607702899,0.62566,3199.0,3198.9,3.2078]
[1737607703590,2.47222254,3199.0,3198.6,0.00468545]
[1737607703790,0.00468545,3199.3,3198.6,0.00468545]
[1737607703791,3.09794254,3198.7,3198.6,0.00468545]
[1737607704697,0.62571,3198.8,3198.6,0.00468545]
[1737607704897,2.47222254,3199.0,3198.6,0.00468545]
[1737607705096,0.62572,3198.7,3198.6,0.00468545]
[1737607706095,3.09794254,3198.7,3198.6,0.00468545]
[1737607706493,0.62581,3198.2,3198.1,40.8]
[1737607706701,0.62593,3197.6,3197.5,3.2078]
[1737607707097,2.47222254,3197.9,3197.2,40.8]
[1737607707397,0.62597,3197.4,3197.2,40.8]
[1737607707599,0.62599,3197.3,3197.2,40.8]
[1737607707797,0.62603,3197.1,3197.0,8.07800838]
[1737607708299,0.62603,3197.2,3197.0,45.67020838]
[1737607708498,0.62603,3197.1,3197.0,45.67020838]
[1737607708798,0.62603,3197.1,3197.0,4.87020838]
[1737607709198,0.62602,3197.2,3197.0,4.87020838]
[1737607709407,0.62603,3197.1,3197.0,4.87020838]
[1737607710898,6.30602254,3197.3,3197.0,4.87020838]
[1737607711095,3.2078,3197.3,3197.0,4.87020838]
[1737607711301,0.00468545,3197.6,3197.4,0.62597]
[1737607711501,0.00468545,3197.6,3197.2,0.626]
[1737607711711,0.00468545,3197.6,3197.3,0.62598]
[1737607712104,0.00468545,3197.6,3197.4,5.0281]
[1737607712502,0.63063545,3197.6,3197.4,5.0281]
[1737607713109,0.00468545,3197.6,3197.4,5.0281]
[1737607714114,0.63062545,3197.6,3197.2,0.626]
[1737607714308,0.63062545,3197.6,3197.5,40.8]
[1737607715509,0.00468545,3197.6,3197.5,40.8]
[1737607716503,0.00468545,3197.6,3197.5,41.42595]
[1737607717109,0.00468545,3197.6,3197.5,40.8]
[1737607717310,0.00468545,3197.6,3197.5,41.42595]
[1737607717910,0.00468545,3197.6,3197.5,40.8]
[1737607718110,0.63061545,3197.6,3197.5,40.8]
[1737607718510,0.00468545,3197.6,3197.5,40.8]
[1737607719312,0.63061545,3197.6,3197.5,40.8]
[1737607719912,0.00468545,3197.6,3197.5,40.8]
[1737607720300,0.00468545,3197.6,3197.5,41.42595]
[1737607720809,0.00468545,3197.6,3197.5,40.8]
[1737607721115,0.00468545,3197.6,3197.5,41.42595]
[1737607722821,3.2078,3198.3,3197.5,44.0078]
[1737607723010,0.62575,3198.6,3198.2,0.6258]
[1737607723213,0.62575,3198.6,3198.3,0.62579]
[1737607723508,0.62575,3198.6,3198.1,3.2078]
[1737607723509,0.62569,3198.9,3198.6,0.62573]
[1737607723713,7.54162254,3199.1,3198.2,10.1264]
[1737607723912,0.62565,3199.1,3198.7,0.6257]
[1737607724113,0.62569,3198.9,3198.6,0.62573]
[1737607724308,0.62569,3198.9,3198.7,40.8]
[1737607724714,0.00468545,3199.0,3198.7,40.8]
[1737607724918,0.63035545,3199.0,3198.7,41.42572]
[1737607725119,0.62568,3198.9,3198.7,40.8]
[1737607725310,0.00468545,3199.0,3198.7,40.8]
[1737607725711,0.63035545,3199.0,3198.7,41.42571]
[1737607725907,0.00468545,3199.0,3198.7,40.8]
[1737607726113,0.63035545,3199.0,3198.7,41.42571]
[1737607726812,2.47222254,3198.8,3198.5,3.2078]
[1737607727017,0.6258,3198.3,3198.2,4.8444]
[1737607727419,2.47222254,3198.4,3197.7,13.6343]
[1737607727713,0.62588,3197.9,3197.7,13.6343]
[1737607727916,0.62589,3197.8,3197.7,8.3531]
[1737607728320,0.62597,3197.4,3197.0,0.00468545]
[1737607728519,0.62603,3197.1,3197.0,0.00468545]
[1737607729814,3.63690241,3197.1,3197.0,0.00468545]
[1737607731015,0.00468545,3197.4,3197.0,0.00468545]
[1737607731221,0.00468545,3197.4,3197.2,0.62601]
[1737607731418,0.63066545,3197.4,3197.3,5.1181]
[1737607731619,0.00468545,3197.4,3197.3,5.1181]
[1737607731818,0.00468545,3197.4,3197.3,8.95189]
[1737607732018,0.00468545,3197.4,3197.3,14.24989]
[1737607734022,3.2078,3198.5,3197.4,1.56493]
[1737607734225,3.2078,3198.5,3197.8,3.2078]
[1737607734825,3.83357,3198.5,3198.1,0.62583]
[1737607735020,3.83825545,3198.5,3197.9,0.62587]
[1737607735213,3.21248545,3198.5,3197.8,3.2078]
[1737607735418,0.00468545,3198.5,3198.4,0.62578]
[1737607736023,0.00468545,3198.5,3198.3,0.62578]
[1737607736618,0.00468545,3198.5,3198.4,0.62578]
[1737607738115,0.00468545,3198.5,3197.8,3.2078]
[1737607738318,0.00468545,3198.5,3198.2,0.6258]
[1737607738528,0.63045545,3198.5,3198.1,0.62583]
[1737607738727,0.00468545,3198.5,3198.2,0.6258]
[1737607739330,0.00468545,3198.5,3197.8,3.2078]
[1737607739829,0.00468545,3198.5,3197.9,0.62587]
[1737607740124,0.00468545,3198.5,3198.3,0.62579]
[1737607740327,0.00468545,3198.5,3198.4,5.73188]
[1737607740719,0.00468545,3198.5,3198.4,5.1061]
[1737607743522,0.00468545,3198.5,3198.0,45.966]
[1737607743523,0.62587,3198.0,3197.8,3.2078]
[1737607743735,3.63667241,3198.3,3197.8,3.83368]
[1737607744029,0.62587,3197.9,3197.8,3.2078]
[1737607744234,0.62585,3198.1,3197.8,3.2078]
[1737607744424,0.62581,3198.2,3197.8,3.2078]
[1737607744723,0.62585,3198.1,3197.8,3.2078]
[1737607745330,4.8868,3198.4,3197.8,3.2078]
[1737607745630,3.01087241,3198.3,3197.8,3.2078]
[1737607745825,3.63674241,3197.9,3197.8,3.2078]
[1737607746733,0.62587,3197.9,3197.8,3.2078]
[1737607748925,3.63674241,3197.9,3197.8,3.2078]
[1737607749126,0.62597,3197.4,3197.3,3.2078]
[1737607749326,4.8891,3197.8,3197.3,3.2078]
[1737607749733,0.62597,3197.4,3197.3,3.2078]
[1737607750430,0.62597,3197.4,3197.1,41.42602]
[1737607751429,3.2078,3198.1,3197.1,40.8]
[1737607751636,3.2078,3198.1,3197.4,0.62596]
[1737607751936,4.77244,3198.1,3197.1,41.42602]
[1737607752135,0.62596,3197.5,3197.2,0.62601]
[1737607752331,3.01087241,3197.9,3197.1,40.8]
[1737607752832,0.62591,3197.8,3197.5,0.62595]
[1737607753228,0.62593,3197.6,3197.3,3.2078]
[1737607753430,0.6259,3197.8,3197.5,0.62594]
[1737607753727,0.62591,3197.8,3197.5,0.62594]
[1737607753931,3.2078,3198.1,3197.5,0.62594]
[1737607754132,0.62587,3198.0,3197.7,0.62591]
[1737607754332,0.62587,3197.9,3197.8,4.8928]
[1737607755130,3.2078,3198.1,3197.8,4.8928]
[1737607755431,0.62586,3198.0,3197.8,4.8928]
[1737607755736,0.62587,3197.9,3197.8,4.8928]
[1737607756035,3.01087241,3198.3,3197.8,4.8928]
[1737607756229,0.6258,3198.3,3198.0,0.62584]
[1737607756535,0.62581,3198.3,3198.0,0.62584]
[1737607756739,0.62581,3198.3,3198.1,40.8]
[1737607757031,0.00468545,3198.5,3198.1,40.8]
[1737607757229,0.00468545,3198.5,3198.4,0.62578]
[1737607757438,0.62554,3199.6,3198.3,3.01087241]
[1737607757636,10.198,3199.9,3199.0,3.2078]
[1737607757942,3.2078,3200.3,3199.8,0.62549]
[1737607758137,3.2078,3200.3,3199.7,0.62552]
[1737607758324,0.62546,3200.1,3199.7,0.62552]
[1737607758531,0.62548,3200.0,3199.5,0.62556]
[1737607758744,0.62548,3200.0,3199.6,0.63021545]
[1737607758938,0.62546,3200.1,3199.7,0.62551]
[1737607759239,0.62546,3200.1,3199.6,0.00468545]
[1737607759540,0.62536,3200.6,3200.1,0.62543]
[1737607759733,0.62537,3200.5,3199.8,3.2078]
[1737607759938,0.62527,3201.0,3200.1,0.62542]
[1737607760135,0.62538,3200.5,3200.0,0.62546]
[1737607760541,0.62538,3200.5,3200.1,0.62544]
[1737607760731,0.62539,3200.4,3200.0,0.62545]
[1737607760937,0.62535,3200.6,3199.9,4.9387]
[1737607761138,0.62531,3200.8,3200.3,0.62539]
[1737607761536,3.2078,3201.1,3200.2,3.2078]
[1737607761732,0.62536,3200.6,3200.2,3.2078]
[1737607761940,3.01087241,3200.9,3200.2,3.2078]
[1737607762138,0.62526,3201.1,3200.6,0.62534]
[1737607762341,0.62527,3201.0,3200.5,0.62535]
[1737607762543,12.99707241,3201.3,3200.3,40.8]
[1737607762942,0.62525,3201.1,3200.6,0.62534]
[1737607763138,12.99707241,3201.3,3200.3,40.8]
[1737607763339,0.62526,3201.1,3200.3,40.8]
[1737607763646,12.99707241,3201.3,3200.3,40.8]
[1737607763849,0.62537,3200.5,3200.2,3.2078]
[1737607764232,0.62536,3200.6,3200.2,3.2078]
[1737607764640,3.01087241,3200.8,3200.2,3.2078]
[1737607764844,3.63619241,3200.8,3200.3,0.6254]
[1737607765045,3.01087241,3200.8,3200.2,3.2078]
[1737607765349,3.01087241,3200.8,3199.8,3.2078]
[1737607765542,0.62543,3200.2,3199.8,3.2078]
[1737607765840,3.2078,3200.3,3199.8,3.2078]
[1737607766046,0.62542,3200.2,3199.8,3.2078]
[1737607766645,3.83321,3200.3,3199.8,3.83329]
[1737607766846,3.2078,3200.3,3199.8,3.2078]
[1737607767038,3.2078,3200.3,3200.0,0.62545]
[1737607767246,3.2078,3200.3,3199.8,3.2078]
[1737607767446,3.2078,3200.3,3200.1,0.62544]
[1737607767946,3.01087241,3201.2,3199.8,3.2078]
[1737607768143,0.05250056,3201.1,3200.2,3.2078]
[1737607768440,0.62529,3200.9,3200.4,0.62537]
[1737607768640,3.01087241,3201.2,3200.3,10.4716]
[1737607768842,0.62538,3200.4,3200.3,10.4716]
[1737607769042,0.62538,3200.4,3200.2,3.2078]
[1737607769244,0.6254,3200.3,3199.8,5.91619]
[1737607769844,0.62538,3200.5,3200.0,0.62545]
[1737607770036,3.01087241,3200.8,3200.0,0.62545]
[1737607770037,3.2078,3200.7,3200.0,3.2078]
[1737607770250,0.62536,3200.5,3200.1,0.62544]
[1737607770747,3.01087241,3200.8,3200.2,0.62541]
[1737607770748,0.62534,3200.7,3200.2,0.62541]
[1737607771040,0.62535,3200.6,3200.0,3.2078]
[1737607771448,3.01087241,3200.8,3200.0,3.2078]
[1737607771651,0.62544,3200.1,3200.0,3.2078]
[1737607771940,3.01087241,3200.4,3200.0,3.2078]
[1737607772147,0.62544,3200.1,3200.0,3.2078]
[1737607772544,0.62552,3199.7,3199.6,0.00468545]
[1737607773336,8.3814,3200.3,3199.6,0.00468545]
[1737607773543,0.62544,3200.1,3199.6,0.00468545]
[1737607773754,8.3814,3200.3,3199.6,0.00468545]
[1737607774047,0.62551,3199.8,3199.6,0.00468545]
[1737607774241,0.62551,3199.8,3199.7,40.8]
[1737607777149,8.3814,3200.3,3199.7,40.8]
[1737607777353,3.2078,3200.3,3200.1,0.62543]
[1737607777846,3.2078,3200.3,3200.2,0.62542]
[1737607778249,0.62535,3200.6,3200.2,0.62542]
[1737607778452,0.62535,3200.6,3200.3,40.8]
[1737607778653,0.62537,3200.5,3200.3,40.8]
[1737607778854,3.01087241,3200.8,3200.3,40.8]
[1737607779051,0.62535,3200.6,3200.3,40.8]
[1737607780351,0.62534,3200.7,3200.3,41.42539]
[1737607780547,3.01087241,3200.8,3200.3,41.42539]
[1737607780748,0.62535,3200.6,3200.3,40.8]
[1737607781252,0.62534,3200.7,3200.3,41.4254]
[1737607781447,3.2078,3200.9,3200.3,40.8]
[1737607781660,3.2078,3200.9,3200.8,0.62531]
[1737607781852,5.2191,3201.3,3200.4,3.2078]
[1737607782052,0.62524,3201.2,3200.8,0.62529]
[1737607782746,0.62525,3201.1,3200.8,0.62529]
[1737607782944,0.62526,3201.1,3200.7,0.62531]
[1737607783143,0.62524,3201.2,3200.8,0.6253]
[1737607783357,5.2191,3201.3,3200.4,3.2078]
[1737607783552,0.62528,3201.0,3200.6,0.62534]
[1737607784253,6.21867241,3200.8,3200.0,3.2078]
[1737607784447,6.21867241,3200.8,3200.0,3.83325]
[1737607784643,0.62541,3200.3,3200.0,3.83325]
[1737607784848,0.62539,3200.4,3200.1,0.62544]
[1737607785051,0.62541,3200.3,3200.0,3.2078]
[1737607785254,0.62543,3200.2,3200.0,3.2078]
[1737607785650,0.62537,3200.5,3200.2,0.62541]
[1737607785850,0.62541,3200.3,3200.0,3.83325]
[1737607786355,0.62541,3200.3,3200.0,3.2078]
[1737607786558,0.62541,3200.3,3200.1,0.62544]
[1737607786861,0.62538,3200.5,3200.0,3.2078]
[1737607787462,0.62538,3200.5,3200.3,0.62539]
[1737607787851,3.2078,3200.8,3200.0,3.2078]
[1737607788051,0.62536,3200.6,3200.4,0.62538]
[1737607788252,0.62536,3200.6,3200.0,3.2078]
[1737607788253,0.62533,3200.7,3200.2,0.62541]
[1737607788761,0.62539,3200.4,3200.2,0.62541]
[1737607789261,0.62538,3200.5,3200.2,0.62541]
[1737607789464,0.62538,3200.5,3200.0,3.2078]
[1737607789763,0.62538,3200.5,3200.3,0.6254]
[1737607790752,0.56140042,3200.7,3200.6,0.62535]
[1737607791155,0.6253,3200.9,3200.6,0.62535]
[1737607791156,0.56140042,3201.1,3201.0,0.62527]
[1737607791356,0.56140042,3201.1,3201.0,44.0078]
[1737607791563,0.56140042,3201.1,3201.0,44.63307]
[1737607791761,1.06143077,3201.5,3201.1,0.62525]
[1737607791960,0.62521,3201.3,3201.1,0.62525]
[1737607792159,0.56140042,3201.5,3201.1,0.62525]
[1737607792561,3.2078,3201.6,3201.1,0.62525]
[1737607792562,0.6252,3201.4,3201.1,0.62525]
[1737607792763,3.2078,3201.6,3201.0,44.0078]
[1737607793063,0.6252,3201.4,3201.1,0.62524]
[1737607793358,3.2078,3201.6,3201.0,44.0078]
[1737607793559,0.56140042,3201.9,3201.4,3.2078]
[1737607793763,0.56140042,3201.9,3201.8,3.83291]
[1737607794069,0.62509,3201.9,3201.8,3.2078]
[1737607794261,0.56140042,3202.0,3201.5,10.83566]
[1737607794458,0.56140042,3202.0,3201.8,0.62509]
[1737607794666,0.56140042,3202.0,3201.9,0.62509]
[1737607795264,1.18641042,3202.4,3202.0,0.62506]
[1737607795565,0.62503,3202.2,3201.9,0.62508]
[1737607795866,0.62507,3202.1,3201.8,3.2078]
[1737607796166,0.49917844,3202.4,3201.5,15.83255]
[1737607796361,0.49917844,3202.4,3201.5,15.2074]
[1737607796566,0.49917844,3202.4,3201.7,0.62512]
[1737607796767,2.061452,3202.4,3201.5,15.2074]
[1737607796963,0.62515,3201.6,3201.5,10.2105]